fUSD/lending_fUSD_20251117
["ID","MTS","AMOUNT","RATE_DAILY","PERIOD"]
[394206515,1763379045279,-500.0,0.00040063,7]
[394206517,1763379045288,-657.08,0.00040097,30]
[394206519,1763379045298,-160.44,0.00040346,2]
[394206521,1763379045310,-300.0,0.00040399,10]
[394206523,1763379045320,-200.0,0.000404,14]
[394206525,1763379045329,-1000.0,0.000405,60]
[394206527,1763379045338,-200.0,0.000405,14]
[394206529,1763379045349,-522.157636,0.00040581,38]
[394206531,1763379045360,-243.324325,0.00040581,38]
[394206533,1763379045369,-595.267532,0.00040581,38]
[394206535,1763379045379,-220.776065,0.00040581,38]
[394206537,1763379045389,-877.52,0.000406,14]
[394206539,1763379045399,-200.0,0.000406,14]
[394206541,1763379045408,-150.0,0.0004063,2]
[394206543,1763379045417,-200.0,0.000407,14]
[394206545,1763379045428,-300.0,0.00040706,10]
[394206547,1763379045437,-972.0,0.000408,14]
[394206549,1763379045447,-190.99841711,0.000409,2]
[394206551,1763379045456,-170.8660425,0.0004099,7]
[394206553,1763379045465,-151.0,0.00040997,14]
[394206555,1763379045475,-707.41,0.00040999,30]
[394206557,1763379045484,-50000.0,0.00041,41]
[394206560,1763379045494,-20408.0,0.00041,7]
[394206561,1763379045504,-210285.05699588,0.00041,120]
[394206563,1763379045513,-186700.34360038,0.00041,120]
[394206565,1763379045522,-151.0,0.00041,120]
[394206567,1763379045532,-151.0,0.00041,120]
[394206569,1763379045541,-153.816695,0.00041,120]
[394206571,1763379045550,-151.0,0.00041,120]
[394206573,1763379045559,-153.816695,0.00041,120]
[394206575,1763379045569,-153.816695,0.00041,120]
[394206578,1763379045579,-151.0,0.00041,120]
[394206579,1763379045588,-153.816695,0.00041,120]
[394206582,1763379045599,-239.929972,0.00041,120]
[394206583,1763379045610,-155.896795,0.00041,30]
[394206585,1763379045620,-151.0,0.00041,120]
[394206588,1763379045631,-151.0,0.00041,120]
[394206590,1763379045641,-151.0,0.00041,120]
[394206592,1763379045651,-151.0,0.00041,120]
[394206594,1763379045660,-151.0,0.00041,120]
[394206596,1763379045669,-152.243022,0.00041,120]
[394206598,1763379045678,-151.0,0.00041,120]
[394206600,1763379045687,-151.0,0.00041,120]
[394206602,1763379045696,-151.0,0.00041,120]
[394206604,1763379045709,-151.0,0.00041,90]
[394206606,1763379045717,-208.69574,0.00041,120]
[394206608,1763379045727,-208.69574,0.00041,120]
[394206610,1763379045736,-208.69574,0.00041,120]
[394206612,1763379045747,-208.69574,0.00041,120]
[394206614,1763379045755,-151.0,0.00041,120]
[394206616,1763379045765,-310.94,0.00041,30]
[394206618,1763379045774,-151.0,0.00041,120]
[394206620,1763379045784,-151.0,0.00041,15]
[394206622,1763379045793,-151.0,0.00041,120]
[394206624,1763379045803,-151.0,0.00041,120]
[394206626,1763379045812,-151.0,0.00041,120]
[394206628,1763379045822,-151.0,0.00041,120]
[394206630,1763379045831,-151.0,0.00041,120]
[394206632,1763379045840,-151.0,0.00041,120]
[394206635,1763379045850,-151.0,0.00041,120]
[394206637,1763379045859,-151.0,0.00041,120]
[394206639,1763379045868,-151.0,0.00041,120]
[394206641,1763379045878,-151.0,0.00041,120]
[394206643,1763379045887,-151.0,0.00041,10]
[394206645,1763379045896,-151.0,0.00041,120]
[394206647,1763379045905,-151.0,0.00041,120]
[394206649,1763379045915,-154.501776,0.00041,120]
[394206651,1763379045924,-151.841322,0.00041,120]
[394206653,1763379045933,-151.0,0.00041,120]
[394206655,1763379045942,-151.0,0.00041,30]
[394206657,1763379045952,-151.0,0.00041,120]
[394206659,1763379045961,-151.0,0.00041,28]
[394206661,1763379045971,-151.0,0.00041,28]
[394206664,1763379045981,-151.0,0.00041,90]
[394206666,1763379045990,-151.0,0.00041,90]
[394206668,1763379045999,-151.0,0.00041,120]
[394206669,1763379046007,-151.0,0.00041,120]
[394206670,1763379046016,-151.0,0.00041,120]
[394206671,1763379046027,-151.0,0.00041,120]
[394206672,1763379046035,-151.0,0.00041,120]
[394206673,1763379046044,-151.0,0.00041,120]
[394206674,1763379046054,-423.040445,0.00041,120]
[394206676,1763379046063,-151.0,0.00041,120]
[394206678,1763379046072,-423.040445,0.00041,120]
[394206680,1763379046081,-423.040445,0.00041,120]
[394206682,1763379046090,-151.0,0.00041,120]
[394206684,1763379046101,-423.040445,0.00041,120]
[394206686,1763379046110,-347.490278,0.00041,120]
[394206688,1763379046118,-347.490278,0.00041,120]
[394206690,1763379046128,-347.490278,0.00041,120]
[394206692,1763379046137,-347.490278,0.00041,120]
[394206694,1763379046145,-551.793528,0.00041,120]
[394206696,1763379046154,-166.22542,0.00041,120]
[394206698,1763379046163,-551.793528,0.00041,120]
[394206700,1763379046173,-166.22542,0.00041,120]
[394206702,1763379046183,-551.793528,0.00041,120]
[394206704,1763379046193,-166.22542,0.00041,120]
[394206706,1763379046202,-551.793528,0.00041,120]
[394206708,1763379046211,-166.22542,0.00041,120]
[394206710,1763379046220,-151.0,0.00041,120]
[394206712,1763379046230,-151.0,0.00041,120]
[394206714,1763379046239,-151.0,0.00041,120]
[394206716,1763379046248,-151.0,0.00041,120]
[394206718,1763379046258,-151.0,0.00041,120]
[394206720,1763379046267,-151.0,0.00041,120]
[394206722,1763379046276,-167.405602,0.00041,120]
[394206724,1763379046285,-151.0,0.00041,120]
[394206726,1763379046294,-151.0,0.00041,120]
[394206728,1763379046303,-151.0,0.00041,120]
[394206730,1763379046312,-223.805663,0.00041,120]
[394206732,1763379046322,-223.805663,0.00041,120]
[394206734,1763379046331,-223.805663,0.00041,120]
[394206736,1763379046340,-151.0,0.00041,120]
[394206738,1763379046351,-223.805663,0.00041,120]
[394206740,1763379046360,-151.0,0.00041,60]
[394206742,1763379046369,-258.910321,0.00041,120]
[394206744,1763379046379,-151.0,0.00041,120]
[394206746,1763379046387,-151.0,0.00041,120]
[394206748,1763379046397,-151.0,0.00041,120]
[394206750,1763379046406,-246.690453,0.00041,120]
[394206752,1763379046415,-151.0,0.00041,120]
[394206754,1763379046424,-151.0,0.00041,120]
[394206756,1763379046434,-151.0,0.00041,120]
[394206758,1763379046443,-151.0,0.00041,120]
[394206760,1763379046452,-151.0,0.00041,120]
[394206762,1763379046462,-151.0,0.00041,120]
[394206764,1763379046471,-153.955169,0.00041,120]
[394206766,1763379046480,-151.0,0.00041,120]
[394206767,1763379046490,-151.0,0.00041,120]
[394206769,1763379046500,-189.883674,0.00041,120]
[394206771,1763379046509,-152.232353,0.00041,120]
[394206774,1763379046519,-151.0,0.00041,120]
[394206776,1763379046528,-151.0,0.00041,120]
[394206778,1763379046537,-151.0,0.00041,120]
[394206780,1763379046546,-151.0,0.00041,120]
[394206782,1763379046556,-151.0,0.00041,120]
[394206784,1763379046565,-157.407198,0.00041,120]
[394206786,1763379046575,-151.0,0.00041,120]
[394206788,1763379046583,-151.0,0.00041,120]
[394206790,1763379046593,-151.0,0.00041,120]
[394206792,1763379046602,-255.174657,0.00041,120]
[394206794,1763379046612,-1118.430823,0.00041,120]
[394206796,1763379046622,-151.0,0.00041,120]
[394206798,1763379046632,-1118.430823,0.00041,120]
[394206800,1763379046641,-1118.430823,0.00041,120]
[394206802,1763379046650,-1118.430823,0.00041,120]
[394206803,1763379046659,-151.0,0.00041,120]
[394206806,1763379046668,-151.0,0.00041,120]
[394206807,1763379046678,-151.0,0.00041,120]
[394206809,1763379046687,-153.729362,0.00041,120]
[394206811,1763379046696,-151.0,0.00041,120]
[394206813,1763379046709,-151.0,0.00041,120]
[394206816,1763379046719,-151.0,0.00041,120]
[394206817,1763379046729,-238.353486,0.00041,120]
[394206819,1763379046738,-151.0,0.00041,30]
[394206822,1763379046749,-151.0,0.00041,120]
[394206823,1763379046758,-151.0,0.00041,120]
[394206825,1763379046767,-1338.5,0.00041041,7]
[394206828,1763379046779,-151.0,0.00041096,45]
[394206829,1763379046788,-151.0,0.00041096,45]
[394206831,1763379046797,-150.0,0.00041096,7]
[394206835,1763379046807,-150.0,0.00041096,7]
[394206838,1763379046816,-167.39298682,0.00041096,7]
[394206841,1763379046826,-250.0,0.00041096,7]
[394206843,1763379046835,-150.0,0.00041096,7]
[394206846,1763379046844,-150.0,0.00041096,7]
[394206849,1763379046854,-200.0,0.00041096,7]
[394206852,1763379046864,-165.87634847,0.00041096,30]
[394206854,1763379046874,-500.0,0.000411,2]
[394206855,1763379046883,-1128.77547261,0.000411,2]
[394206857,1763379046892,-222.2113773,0.00041109,2]
[394206859,1763379046901,-700.39,0.00041133,30]
[394206861,1763379046911,-700.39,0.00041133,30]
[394206863,1763379046920,-700.39,0.00041133,30]
[394206865,1763379046931,-319.96,0.00041133,30]
[394206867,1763379046940,-1000.0,0.000412,2]
[394206869,1763379046949,-10000.0,0.00041242,2]
[394206871,1763379046959,-310.94,0.00041274,30]
[394206873,1763379046967,-227.36663,0.0004129,8]
[394206875,1763379046976,-151.0,0.00041336,14]
[394206878,1763379046986,-181.61613088,0.00041339,120]
[394206879,1763379046996,-746.563014,0.00041339,120]
[394206882,1763379047006,-746.563014,0.00041339,120]
[394206884,1763379047016,-746.563014,0.00041339,120]
[394206886,1763379047025,-746.563014,0.00041339,120]
[394206888,1763379047034,-434.434265,0.00041339,120]
[394206889,1763379047043,-434.434265,0.00041339,120]
[394206890,1763379047052,-434.434265,0.00041339,120]
[394206891,1763379047061,-434.434265,0.00041339,120]
[394206892,1763379047070,-151.0,0.00041339,120]
[394206893,1763379047079,-428.955085,0.00041339,30]
[394206894,1763379047088,-428.955085,0.00041339,30]
[394206895,1763379047097,-173.63947,0.00041339,120]
[394206897,1763379047107,-428.955085,0.00041339,30]
[394206900,1763379047116,-173.63947,0.00041339,120]
[394206902,1763379047126,-428.955085,0.00041339,30]
[394206903,1763379047135,-173.63947,0.00041339,120]
[394206922,1763379047144,-173.63947,0.00041339,120]
[394206928,1763379047348,-226.361975,0.00041339,120]
[394206930,1763379047359,-151.0,0.00041339,120]
[394206932,1763379047368,-226.361975,0.00041339,120]
[394206934,1763379047381,-151.0,0.00041339,120]
[394206937,1763379047391,-226.361975,0.00041339,120]
[394206939,1763379047400,-226.361975,0.00041339,120]
[394206941,1763379047410,-151.0,0.00041339,120]
[394206943,1763379047419,-151.0,0.00041339,120]
[394206945,1763379047428,-264.838396,0.00041339,120]
[394206947,1763379047439,-151.0,0.00041339,120]
[394206949,1763379047448,-151.0,0.00041339,120]
[394206950,1763379047457,-151.0,0.00041339,120]
[394206952,1763379047466,-151.0,0.00041339,120]
[394206954,1763379047476,-166.14562904,0.00041342,3]
[394206956,1763379047485,-1000.0,0.0004137,14]
[394206958,1763379047494,-216.1,0.000414,29]
[394206960,1763379047503,-747.01,0.000414,30]
[394206962,1763379047512,-203.108012,0.000414,21]
[394206964,1763379047521,-227.36662,0.00041411,9]
[394206966,1763379047530,-151.0,0.00041411,2]
[394206968,1763379047540,-170.8660425,0.00041429,7]
[394206970,1763379047549,-125232.0327938,0.00041434,2]
[394206972,1763379047559,-151.0,0.00041434,120]
[394206975,1763379047570,-151.0,0.00041434,120]
[394206977,1763379047581,-151.0,0.00041434,120]
[394206979,1763379047591,-151.0,0.00041434,120]
[394206981,1763379047601,-151.0,0.00041434,120]
[394206983,1763379047611,-255.222647,0.00041434,120]
[394206985,1763379047620,-151.0,0.00041434,120]
[394206987,1763379047629,-151.0,0.00041434,120]
[394206989,1763379047638,-157.522982,0.00041434,120]
[394206991,1763379047647,-157.522982,0.00041434,120]
[394206993,1763379047657,-157.522982,0.00041434,120]
[394206995,1763379047666,-157.522982,0.00041434,120]
[394206997,1763379047676,-151.0,0.00041436,14]
[394206999,1763379047685,-151.0,0.00041436,14]
[394207001,1763379047695,-151.0,0.00041436,14]
[394207003,1763379047709,-151.0,0.00041436,14]
[394207005,1763379047719,-151.0,0.00041436,14]
[394207007,1763379047730,-151.0,0.00041436,14]
[394207009,1763379047739,-238.738768,0.00041436,14]
[394207011,1763379047748,-50000.0,0.00041438,30]
[394207013,1763379047757,-45000.0,0.00041438,31]
[394207015,1763379047766,-151.0,0.00041438,14]
[394207017,1763379047777,-616.96380031,0.00041439,26]
[394207019,1763379047786,-1932585.873243,0.00041439,7]
[394207226,1763379050185,-298.9199995,0.00033794,2]
[394207434,1763379101264,500.0,0.00017999,2]
[394207435,1763379101519,500.0,0.00017999,2]
[394207436,1763379103815,500.0,0.00017999,2]
[394207437,1763379104037,500.0,0.00017999,2]
[394207438,1763379123896,500.0,0.00017999,2]
[394207439,1763379124125,500.0,0.00017999,2]
[394207440,1763379138320,151.0,0.00017997,2]
[394207441,1763379138823,151.0,0.00017997,2]
[394207442,1763379139353,151.0,0.00017997,2]
[394207443,1763379156546,378.7663,0.00017899,2]
[394207446,1763379727959,508.674547,7.945e-05,2]
[394207447,1763379755946,200.22259883,0.0001,2]
[394207449,1763379898663,454.0,0.00022,30]
[394207450,1763379929609,-155.28,0.0001976,2]
[394207529,1763380232347,-297.16137531,0.00020466,2]
[394207530,1763380232356,-851.81681194,0.00021072,2]
[394207531,1763380232365,-155.28,0.00021171,2]
[394207532,1763380232376,-162.45105665,0.00021636,2]
[394207533,1763380232386,-250.0,0.00021736,2]
[394207534,1763380232395,-250.0,0.00022512,2]
[394207535,1763380232404,-155.28,0.00022583,2]
[394207536,1763380232413,-155.28,0.00023994,2]
[394207537,1763380232422,-150.0,0.000248,14]
[394207538,1763380232432,-155.28,0.00025406,2]
[394207539,1763380232440,-155.28,0.00026817,2]
[394207540,1763380232450,-716.0,0.00028049,2]
[394207541,1763380232458,-299.99,0.0002805,12]
[394207542,1763380232467,-286.52,0.0002805,2]
[394207543,1763380232476,-150.99,0.0002805,2]
[394207544,1763380232485,-2157.31,0.0002805,2]
[394207545,1763380232496,-155.28,0.00028229,2]
[394207546,1763380232506,-155.28,0.0002964,2]
[394207547,1763380232516,-793.0,0.00030161,2]
[394207548,1763380232525,-1275.0,0.00030161,2]
[394207549,1763380232535,-155.28,0.00031051,2]
[394207550,1763380232544,-155.28,0.00032463,2]
[394207551,1763380232553,-629.50617611,0.00032701,2]
[394207552,1763380232575,-811.20382389,0.00032701,2]
[394207553,1763380232585,-213.79,0.00033,30]
[394207554,1763380232594,-155.28,0.00033874,2]
[394207555,1763380232604,-411.428874,0.00035109,2]
[394207556,1763380232613,-155.28,0.00035286,2]
[394207557,1763380232622,-4494.73323124,0.00035703,2]
[394207558,1763380232633,-505.26676876,0.00035703,2]
[394207559,1763380232643,-200.0,0.00035788,2]
[394207560,1763380232652,-168.72003,0.00035888,30]
[394207561,1763380232662,-858.25,0.00035973,5]
[394207562,1763380232671,-224.0,0.00036,2]
[394207564,1763380232681,-168.72003,0.00036088,30]
[394207565,1763380232690,-168.72003,0.00036288,30]
[394207566,1763380232699,-168.72003,0.00036488,30]
[394207567,1763380232708,-500.0,0.00036488,30]
[394207568,1763380232716,-500.0,0.00036488,30]
[394207569,1763380232726,-500.0,0.00036488,30]
[394207570,1763380232735,-500.0,0.00036488,30]
[394207571,1763380232744,-500.0,0.00036488,30]
[394207572,1763380232753,-500.0,0.00036488,30]
[394207573,1763380232762,-500.0,0.00036488,30]
[394207574,1763380232771,-500.0,0.00036488,30]
[394207575,1763380232780,-500.0,0.00036488,30]
[394207576,1763380232789,-500.0,0.00036488,30]
[394207577,1763380232798,-700.0,0.00036488,30]
[394207578,1763380232807,-500.0,0.00036488,30]
[394207579,1763380232816,-900.0,0.00036488,30]
[394207580,1763380232826,-500.0,0.00036488,30]
[394207581,1763380232835,-500.0,0.00036488,30]
[394207582,1763380232845,-500.0,0.00036488,30]
[394207583,1763380232854,-500.0,0.00036488,30]
[394207584,1763380232863,-500.0,0.00036488,30]
[394207585,1763380232873,-500.0,0.00036488,30]
[394207586,1763380232882,-500.0,0.00036488,30]
[394207587,1763380232891,-500.0,0.00036488,30]
[394207588,1763380232901,-500.0,0.00036488,30]
[394207589,1763380232910,-500.0,0.00036488,30]
[394207590,1763380232919,-500.0,0.00036488,30]
[394207591,1763380232928,-500.0,0.00036488,30]
[394207592,1763380232937,-500.0,0.00036488,30]
[394207593,1763380232947,-500.0,0.00036488,30]
[394207594,1763380232956,-500.0,0.00036488,30]
[394207595,1763380232965,-843.67723457,0.00036488,30]
[394207596,1763380232974,-500.5298232,0.00036488,30]
[394207597,1763380232983,-500.0,0.00036488,30]
[394207598,1763380232992,-500.0,0.00036488,30]
[394207599,1763380233002,-500.0,0.00036488,30]
[394207600,1763380233012,-500.0,0.00036488,30]
[394207601,1763380233022,-500.0,0.00036488,30]
[394207602,1763380233031,-600.0,0.00036488,30]
[394207603,1763380233042,-500.0,0.00036488,30]
[394207604,1763380233051,-500.0,0.00036488,30]
[394207605,1763380233066,-500.0,0.00036488,30]
[394207606,1763380233076,-168.72003,0.00036688,30]
[394207607,1763380233085,-155.28,0.00036697,2]
[394207608,1763380233094,-168.72003,0.00036888,30]
[394207609,1763380233104,-562.4001,0.00036888,7]
[394207610,1763380233115,-222.0,0.00037,30]
[394207611,1763380233124,-168.72003,0.00037088,30]
[394207612,1763380233134,-218.03,0.00037191,2]
[394207613,1763380233143,-181.61613088,0.000372,120]
[394207614,1763380233154,-151.82,0.00037201,120]
[394207615,1763380233163,-200.39449813,0.00037258,7]
[394207616,1763380233172,-150.0,0.00037258,7]
[394207617,1763380233181,-402.06504578,0.00037258,7]
[394207618,1763380233191,-294.21526007,0.00037258,7]
[394207619,1763380233200,-466.00581416,0.00037258,7]
[394207620,1763380233209,-150.0,0.00037258,7]
[394207621,1763380233219,-241.69821507,0.00037258,7]
[394207622,1763380233228,-150.0,0.00037258,7]
[394207623,1763380233237,-276.17380073,0.00037258,7]
[394207624,1763380233246,-150.0,0.00037258,7]
[394207625,1763380233255,-150.0,0.00037258,7]
[394207626,1763380233264,-150.0,0.00037258,7]
[394207627,1763380233274,-150.0,0.00037258,7]
[394207628,1763380233284,-150.0,0.00037258,7]
[394207629,1763380233293,-189.80031153,0.00037258,7]
[394207630,1763380233302,-230.11800003,0.00037258,7]
[394207631,1763380233312,-150.0,0.00037258,7]
[394207632,1763380233322,-168.72003,0.00037288,30]
[394207633,1763380233331,-200.39449813,0.00037299,7]
[394207634,1763380233341,-402.06504578,0.00037299,7]
[394207635,1763380233351,-294.21526007,0.00037299,7]
[394207636,1763380233361,-466.00581416,0.00037299,7]
[394207637,1763380233370,-241.69821507,0.00037299,7]
[394207638,1763380233379,-276.17380073,0.00037299,7]
[394207639,1763380233389,-230.11800003,0.00037299,7]
[394207640,1763380233398,-150.0,0.00037313,7]
[394207641,1763380233407,-150.0,0.00037323,7]
[394207642,1763380233416,-200.39449813,0.00037341,7]
[394207643,1763380233426,-402.06504578,0.00037341,7]
[394207644,1763380233435,-294.21526007,0.00037341,7]
[394207645,1763380233445,-466.00581416,0.00037341,7]
[394207646,1763380233455,-241.69821507,0.00037341,7]
[394207647,1763380233464,-276.17380073,0.00037341,7]
[394207648,1763380233476,-230.11800003,0.00037341,7]
[394207649,1763380233485,-150.0,0.00037364,7]
[394207650,1763380233496,-150.0,0.00037369,7]
[394207651,1763380233505,-150.0,0.00037376,7]
[394207652,1763380233515,-200.39449813,0.00037383,7]
[394207653,1763380233525,-402.06504578,0.00037383,7]
[394207654,1763380233534,-294.21526007,0.00037383,7]
[394207655,1763380233543,-466.00581416,0.00037383,7]
[394207656,1763380233552,-241.69821507,0.00037383,7]
[394207657,1763380233562,-276.17380073,0.00037383,7]
[394207658,1763380233572,-230.11800003,0.00037383,7]
[394207659,1763380233581,-150.0,0.00037389,7]
[394207660,1763380233591,-2317.90781386,0.00037408,2]
[394207661,1763380233600,-200.39449813,0.00037425,7]
[394207662,1763380233610,-402.06504578,0.00037425,7]
[394207663,1763380233620,-294.21526007,0.00037425,7]
[394207664,1763380233629,-466.00581416,0.00037425,7]
[394207665,1763380233639,-241.69821507,0.00037425,7]
[394207666,1763380233649,-276.17380073,0.00037425,7]
[394207667,1763380233658,-230.11800003,0.00037425,7]
[394207668,1763380233667,-150.0,0.00037425,7]
[394207669,1763380233676,-150.0,0.00037455,7]
[394207670,1763380233685,-200.39449813,0.00037467,7]
[394207671,1763380233695,-402.06504578,0.00037467,7]
[394207672,1763380233704,-294.21526007,0.00037467,7]
[394207673,1763380233714,-466.00581416,0.00037467,7]
[394207674,1763380233723,-241.69821507,0.00037467,7]
[394207675,1763380233732,-276.17380073,0.00037467,7]
[394207676,1763380233742,-230.11800003,0.00037467,7]
[394207677,1763380233752,-150.0,0.0003747,7]
[394207678,1763380233761,-150.0,0.00037481,7]
[394207679,1763380233771,-150.0,0.00037488,7]
[394207680,1763380233780,-168.72003,0.00037488,30]
[394207681,1763380233790,-150.0,0.00037494,7]
[394207682,1763380233799,-200.39449813,0.00037508,7]
[394207683,1763380233809,-402.06504578,0.00037508,7]
[394207684,1763380233818,-294.21526007,0.00037508,7]
[394207685,1763380233827,-466.00581416,0.00037508,7]
[394207686,1763380233837,-241.69821507,0.00037508,7]
[394207687,1763380233846,-276.17380073,0.00037508,7]
[394207688,1763380233856,-230.11800003,0.00037508,7]
[394207689,1763380233866,-150.0,0.0003752,7]
[394207690,1763380233876,-150.0,0.00037537,7]
[394207691,1763380233886,-200.39449813,0.0003755,7]
[394207692,1763380233896,-402.06504578,0.0003755,7]
[394207693,1763380233905,-294.21526007,0.0003755,7]
[394207694,1763380233915,-466.00581416,0.0003755,7]
[394207695,1763380233925,-241.69821507,0.0003755,7]
[394207696,1763380233934,-276.17380073,0.0003755,7]
[394207697,1763380233944,-230.11800003,0.0003755,7]
[394207698,1763380233955,-150.0,0.00037576,7]
[394207699,1763380233964,-150.0,0.00037576,7]
[394207700,1763380233974,-150.0,0.00037586,7]
[394207701,1763380233984,-200.39449813,0.00037592,7]
[394207702,1763380233993,-402.06504578,0.00037592,7]
[394207703,1763380234003,-294.21526007,0.00037592,7]
[394207704,1763380234013,-466.00581416,0.00037592,7]
[394207705,1763380234022,-241.69821507,0.00037592,7]
[394207706,1763380234032,-276.17380073,0.00037592,7]
[394207707,1763380234041,-230.11800003,0.00037592,7]
[394207708,1763380234051,-150.0,0.00037593,7]
[394207709,1763380234064,-150.0,0.00037612,7]
[394207710,1763380234073,-200.39449813,0.00037634,7]
[394207711,1763380234083,-402.06504578,0.00037634,7]
[394207712,1763380234092,-294.21526007,0.00037634,7]
[394207713,1763380234103,-466.00581416,0.00037634,7]
[394207714,1763380234113,-241.69821507,0.00037634,7]
[394207715,1763380234124,-276.17380073,0.00037634,7]
[394207716,1763380234133,-230.11800003,0.00037634,7]
[394207717,1763380234146,-150.0,0.00037649,7]
[394207718,1763380234156,-150.0,0.00037652,7]
[394207719,1763380234165,-200.39449813,0.00037676,7]
[394207720,1763380234174,-402.06504578,0.00037676,7]
[394207721,1763380234184,-294.21526007,0.00037676,7]
[394207722,1763380234193,-466.00581416,0.00037676,7]
[394207723,1763380234202,-241.69821507,0.00037676,7]
[394207724,1763380234212,-276.17380073,0.00037676,7]
[394207725,1763380234222,-230.11800003,0.00037676,7]
[394207726,1763380234232,-150.0,0.00037682,7]
[394207727,1763380234241,-168.72003,0.00037688,30]
[394207728,1763380234251,-150.0,0.00037705,7]
[394207729,1763380234260,-200.39449813,0.00037718,7]
[394207730,1763380234270,-402.06504578,0.00037718,7]
[394207731,1763380234279,-294.21526007,0.00037718,7]
[394207732,1763380234288,-466.00581416,0.00037718,7]
[394207733,1763380234298,-241.69821507,0.00037718,7]
[394207734,1763380234307,-276.17380073,0.00037718,7]
[394207735,1763380234317,-150.0,0.00037718,7]
[394207736,1763380234327,-150.0,0.00037718,7]
[394207737,1763380234336,-230.11800003,0.00037718,7]
[394207738,1763380234346,-150.0,0.00037731,7]
[394207739,1763380234356,-200.39449813,0.00037759,7]
[394207740,1763380234366,-402.06504578,0.00037759,7]
[394207741,1763380234375,-294.21526007,0.00037759,7]
[394207742,1763380234384,-466.00581416,0.00037759,7]
[394207743,1763380234395,-241.69821507,0.00037759,7]
[394207744,1763380234404,-276.17380073,0.00037759,7]
[394207745,1763380234414,-230.11800003,0.00037759,7]
[394207746,1763380234423,-150.0,0.00037761,7]
[394207747,1763380234433,-150.0,0.00037783,7]
[394207748,1763380234443,-150.0,0.00037788,7]
[394207749,1763380234452,-200.39449813,0.00037801,7]
[394207750,1763380234461,-402.06504578,0.00037801,7]
[394207751,1763380234471,-294.21526007,0.00037801,7]
[394207752,1763380234480,-466.00581416,0.00037801,7]
[394207753,1763380234490,-241.69821507,0.00037801,7]
[394207754,1763380234499,-276.17380073,0.00037801,7]
[394207755,1763380234510,-230.11800003,0.00037801,7]
[394207756,1763380234519,-150.0,0.00037817,7]
[394207757,1763380234772,-200.39449813,0.00037843,7]
[394207758,1763380234791,-402.06504578,0.00037843,7]
[394207759,1763380234800,-294.21526007,0.00037843,7]
[394207760,1763380234810,-466.00581416,0.00037843,7]
[394207761,1763380234819,-241.69821507,0.00037843,7]
[394207762,1763380234828,-276.17380073,0.00037843,7]
[394207763,1763380234837,-230.11800003,0.00037843,7]
[394207764,1763380234846,-150.0,0.00037849,7]
[394207765,1763380234856,-150.0,0.00037849,7]
[394207766,1763380234865,-150.0,0.00037873,7]
[394207767,1763380234875,-200.39449813,0.00037885,7]
[394207768,1763380234884,-402.06504578,0.00037885,7]
[394207769,1763380234894,-294.21526007,0.00037885,7]
[394207770,1763380234904,-466.00581416,0.00037885,7]